[Event "Titled Tuesday Blitz May 2 Late 2023"]
[White "Maurizzi, Marc`Andria"]
[Black "Holt, Conrad"]
[WhiteFideId "36083534"]
[BlackFideId "2034387"]
[WhiteElo "2421"]
[BlackElo "2592"]
[Result "0-1"]
[Round "06"]
[TimeControl "180+2"]
[Date "2023.05.02"]
[WhiteClock "0:00:09"]
[BlackClock "0:00:08"]

1. e4 {[%clk 0:03:00]}  e6 {[%clk 0:03:00]} 2. d4 {[%clk 0:02:58]}  d5 {[%clk 0:03:00]} 3. Nd2 {[%clk 0:02:59]}  c5 {[%clk 0:03:00]} 4. Ngf3 {[%clk 0:02:59]}  cxd4 {[%clk 0:03:00]} 5. Nxd4 {[%clk 0:02:58]}  Nf6 {[%clk 0:03:00]} 6. exd5 {[%clk 0:02:57]}  Nxd5 {[%clk 0:03:01]} 7. N2f3 {[%clk 0:02:58]}  Bb4+ {[%clk 0:03:01]} 8. Bd2 {[%clk 0:02:58]}  O-O {[%clk 0:03:01]} 9. Bd3 {[%clk 0:02:56]}  Qf6 {[%clk 0:02:47]} 10. c3 {[%clk 0:02:55]}  e5 {[%clk 0:02:48]} 11. Ne2 {[%clk 0:02:50]}  Ba5 {[%clk 0:02:39]} 12. O-O {[%clk 0:02:45]}  Bg4 {[%clk 0:02:23]} 13. Ng3 {[%clk 0:02:43]}  Bxf3 {[%clk 0:02:13]} 14. Qxf3 {[%clk 0:02:44]}  Qxf3 {[%clk 0:02:13]} 15. gxf3 {[%clk 0:02:45]}  Nd7 {[%clk 0:02:11]} 16. Rad1 {[%clk 0:02:45]}  Bc7 {[%clk 0:01:56]} 17. Rfe1 {[%clk 0:02:44]}  Nc5 {[%clk 0:01:54]} 18. Bc2 {[%clk 0:02:40]}  Rad8 {[%clk 0:01:50]} 19. Bg5 {[%clk 0:02:40]}  f6 {[%clk 0:01:45]} 20. Bc1 {[%clk 0:02:38]}  Kh8 {[%clk 0:01:43]} 21. Ne4 {[%clk 0:02:34]}  Ne6 {[%clk 0:01:40]} 22. Bb3 {[%clk 0:02:33]}  Ndf4 {[%clk 0:01:39]} 23. Be3 {[%clk 0:02:30]}  Bb6 {[%clk 0:01:19]} 24. Bxf4 {[%clk 0:02:13]}  Nxf4 {[%clk 0:01:19]} 25. Nd6 {[%clk 0:02:14]}  Rd7 {[%clk 0:01:17]} 26. Kf1 {[%clk 0:02:08]}  h5 {[%clk 0:00:59]} 27. Ba4 {[%clk 0:02:07]}  Rc7 {[%clk 0:00:53]} 28. Re4 {[%clk 0:02:05]}  Kh7 {[%clk 0:00:51]} 29. Nf5 {[%clk 0:02:01]}  g6 {[%clk 0:00:48]} 30. Ne3 {[%clk 0:02:01]}  Re7 {[%clk 0:00:19]} 31. Bc2 {[%clk 0:01:48]}  Rd8 {[%clk 0:00:16]} 32. Rxd8 {[%clk 0:00:40]}  Bxd8 {[%clk 0:00:17]} 33. Ba4 {[%clk 0:00:41]}  Re6 {[%clk 0:00:13]} 34. Rc4 {[%clk 0:00:37]}  Rd6 {[%clk 0:00:12]} 35. Rc8 {[%clk 0:00:37]}  Bb6 {[%clk 0:00:11]} 36. Nc4 {[%clk 0:00:35]}  Rd3 {[%clk 0:00:11]} 37. Nxb6 {[%clk 0:00:18]}  axb6 {[%clk 0:00:11]} 38. Rc7+ {[%clk 0:00:19]}  Kh6 {[%clk 0:00:11]} 39. Rxb7 {[%clk 0:00:20]}  Rd6 {[%clk 0:00:10]} 40. c4 {[%clk 0:00:17]}  Nd3 {[%clk 0:00:09]} 41. a3 {[%clk 0:00:16]}  Nxb2 {[%clk 0:00:09]} 42. Bb5 {[%clk 0:00:15]}  Nd3 {[%clk 0:00:08]} 43. Rb8 {[%clk 0:00:11]}  Kg5 {[%clk 0:00:08]} 44. Rc8 {[%clk 0:00:08]}  Nf4 {[%clk 0:00:08]} 45. Ba4 {[%clk 0:00:08]}  Rd3 {[%clk 0:00:08]} 46. c5 {[%clk 0:00:08]}  Rxa3 {[%clk 0:00:08]} 47. Bd1 {[%clk 0:00:07]}  Ra1 {[%clk 0:00:08]} 48. Ke1 {[%clk 0:00:08]}  Nd3+ {[%clk 0:00:08]} 49. Kd2 {[%clk 0:00:08]}  Nxc5 {[%clk 0:00:09]} 50. Bc2 {[%clk 0:00:09]}  Ra3 {[%clk 0:00:09]} 51. Rg8 {[%clk 0:00:08]}  f5 {[%clk 0:00:08]} 52. Re8 {[%clk 0:00:09]}  Rxf3 {[%clk 0:00:08]} 53. Rxe5 {[%clk 0:00:09]}  Rxf2+ {[%clk 0:00:09]} 54. Kc3 {[%clk 0:00:09]}  Rxh2 {[%clk 0:00:09]} 55. Re8 {[%clk 0:00:09]}  h4 {[%clk 0:00:08]} 0-1


[Site "https://www.chess.com"]

[Event "Titled Tuesday Blitz May 2 Late 2023"]
[White "Kovalenko, Igor"]
[Black "Hajiyev, Kanan"]
[WhiteFideId "14117908"]
[BlackFideId "13404148"]
[WhiteElo "2574"]
[BlackElo "2103"]
[Result "1-0"]
[Round "06"]
[TimeControl "180+2"]
[Date "2023.05.02"]
[WhiteClock "0:01:28"]
[BlackClock "0:00:05"]

1. d4 {[%clk 0:03:00]}  d5 {[%clk 0:02:59]} 2. c4 {[%clk 0:02:58]}  c6 {[%clk 0:02:59]} 3. Nf3 {[%clk 0:02:58]}  Nf6 {[%clk 0:02:59]} 4. Nc3 {[%clk 0:02:58]}  g6 {[%clk 0:03:00]} 5. Bg5 {[%clk 0:02:56]}  Ne4 {[%clk 0:02:59]} 6. h4 {[%clk 0:02:55]}  Bg7 {[%clk 0:02:58]} 7. e3 {[%clk 0:02:55]}  h6 {[%clk 0:02:56]} 8. Bf4 {[%clk 0:02:55]}  Bg4 {[%clk 0:02:53]} 9. Qb3 {[%clk 0:02:55]}  Qb6 {[%clk 0:02:45]} 10. cxd5 {[%clk 0:02:52]}  Qxb3 {[%clk 0:02:44]} 11. axb3 {[%clk 0:02:52]}  Nxc3 {[%clk 0:02:45]} 12. bxc3 {[%clk 0:02:52]}  cxd5 {[%clk 0:02:45]} 13. Bxb8 {[%clk 0:02:48]}  Rxb8 {[%clk 0:02:44]} 14. Bb5+ {[%clk 0:02:48]}  Bd7 {[%clk 0:02:39]} 15. Bxd7+ {[%clk 0:02:47]}  Kxd7 {[%clk 0:02:39]} 16. Rxa7 {[%clk 0:02:47]}  Rhc8 {[%clk 0:02:36]} 17. Kd2 {[%clk 0:02:47]}  Kc6 {[%clk 0:02:28]} 18. Rha1 {[%clk 0:02:42]}  Kb6 {[%clk 0:02:27]} 19. Kd3 {[%clk 0:02:40]}  Re8 {[%clk 0:01:44]} 20. R7a5 {[%clk 0:02:36]}  Rbd8 {[%clk 0:01:33]} 21. R5a4 {[%clk 0:02:32]}  e5 {[%clk 0:01:31]} 22. dxe5 {[%clk 0:02:30]}  Bxe5 {[%clk 0:01:32]} 23. Rb4+ {[%clk 0:02:30]}  Kc6 {[%clk 0:01:31]} 24. g4 {[%clk 0:02:23]}  Bg7 {[%clk 0:01:30]} 25. Ra7 {[%clk 0:02:16]}  Rd7 {[%clk 0:01:24]} 26. Rf4 {[%clk 0:02:06]}  Re4 {[%clk 0:01:20]} 27. Ra4 {[%clk 0:01:59]}  Rxa4 {[%clk 0:00:59]} 28. Rxa4 {[%clk 0:01:57]}  Kb5 {[%clk 0:00:47]} 29. Ra8 {[%clk 0:01:52]}  Rc7 {[%clk 0:00:47]} 30. Nd4+ {[%clk 0:01:52]}  Kc5 {[%clk 0:00:41]} 31. Rd8 {[%clk 0:01:49]}  Bxd4 {[%clk 0:00:28]} 32. exd4+ {[%clk 0:01:49]}  Kc6 {[%clk 0:00:29]} 33. Rh8 {[%clk 0:01:49]}  b5 {[%clk 0:00:23]} 34. Rxh6 {[%clk 0:01:48]}  b4 {[%clk 0:00:24]} 35. h5 {[%clk 0:01:47]}  bxc3 {[%clk 0:00:22]} 36. Kxc3 {[%clk 0:01:47]}  Kb5+ {[%clk 0:00:18]} 37. Kd2 {[%clk 0:01:45]}  gxh5 {[%clk 0:00:19]} 38. Rxh5 {[%clk 0:01:44]}  Rd7 {[%clk 0:00:13]} 39. Kc3 {[%clk 0:01:42]}  Rc7+ {[%clk 0:00:13]} 40. Kd3 {[%clk 0:01:41]}  Rd7 {[%clk 0:00:14]} 41. Rh8 {[%clk 0:01:40]}  Rb7 {[%clk 0:00:11]} 42. Rc8 {[%clk 0:01:39]}  Kb4 {[%clk 0:00:10]} 43. Rc5 {[%clk 0:01:37]}  Rd7 {[%clk 0:00:09]} 44. g5 {[%clk 0:01:34]}  Kxb3 {[%clk 0:00:08]} 45. f4 {[%clk 0:01:32]}  Kb4 {[%clk 0:00:06]} 46. f5 {[%clk 0:01:31]}  Kb3 {[%clk 0:00:05]} 47. f6 {[%clk 0:01:31]}  Kb4 {[%clk 0:00:04]} 48. Ke3 {[%clk 0:01:30]}  Rd6 {[%clk 0:00:01]} 49. Kf4 {[%clk 0:01:30]}  Re6 {[%clk 0:00:01]} 50. Rxd5 {[%clk 0:01:30]}  Kc4 {[%clk 0:00:02]} 51. Rd7 {[%clk 0:01:30]}  Ra6 {[%clk 0:00:01]} 52. Rxf7 {[%clk 0:01:28]}  Kxd4 {[%clk 0:00:02]} 53. Rd7+ {[%clk 0:01:29]}  Kc5 {[%clk 0:00:03]} 54. f7 {[%clk 0:01:29]}  Kc6 {[%clk 0:00:04]} 55. Rd2 {[%clk 0:01:28]}  Ra4+ {[%clk 0:00:04]} 56. Kf5 {[%clk 0:01:28]}  Ra8 {[%clk 0:00:05]} 57. Kf6 {[%clk 0:01:28]} 1-0


[Site "https://www.chess.com"]

[Event "Titled Tuesday Blitz May 2 Late 2023"]
[White "Kobo, Ori"]
[Black "Saya, Ethan"]
[WhiteFideId "2812320"]
[BlackFideId "26095181"]
[WhiteElo "2447"]
[BlackElo "2189"]
[Result "1-0"]
[Round "06"]
[TimeControl "180+2"]
[Date "2023.05.02"]
[WhiteClock "0:00:07"]
[BlackClock "0:00:10"]

1. Nf3 {[%clk 0:03:00]}  Nf6 {[%clk 0:02:59]} 2. c4 {[%clk 0:03:00]}  e6 {[%clk 0:02:58]} 3. g3 {[%clk 0:03:00]}  d5 {[%clk 0:02:58]} 4. Bg2 {[%clk 0:03:01]}  Be7 {[%clk 0:02:59]} 5. O-O {[%clk 0:03:01]}  O-O {[%clk 0:02:59]} 6. b3 {[%clk 0:03:00]}  b6 {[%clk 0:02:59]} 7. Bb2 {[%clk 0:03:00]}  Bb7 {[%clk 0:02:59]} 8. cxd5 {[%clk 0:03:00]}  Nxd5 {[%clk 0:02:57]} 9. d4 {[%clk 0:03:00]}  Nf6 {[%clk 0:02:53]} 10. Re1 {[%clk 0:02:47]}  Nbd7 {[%clk 0:02:51]} 11. Nc3 {[%clk 0:02:46]}  c5 {[%clk 0:02:42]} 12. e4 {[%clk 0:02:46]}  cxd4 {[%clk 0:02:38]} 13. Nxd4 {[%clk 0:02:47]}  Ne5 {[%clk 0:02:19]} 14. Re2 {[%clk 0:02:43]}  Nc6 {[%clk 0:02:01]} 15. Nxc6 {[%clk 0:02:21]}  Bxc6 {[%clk 0:02:01]} 16. e5 {[%clk 0:02:22]}  Nd5 {[%clk 0:02:00]} 17. Nxd5 {[%clk 0:02:11]}  Bxd5 {[%clk 0:02:00]} 18. Rd2 {[%clk 0:01:42]}  Bc5 {[%clk 0:01:38]} 19. Bxd5 {[%clk 0:01:39]}  exd5 {[%clk 0:01:38]} 20. Rxd5 {[%clk 0:01:36]}  Qg5 {[%clk 0:01:38]} 21. Qf3 {[%clk 0:01:32]}  Rae8 {[%clk 0:01:33]} 22. Rad1 {[%clk 0:01:25]}  Rd8 {[%clk 0:01:33]} 23. h4 {[%clk 0:01:02]}  Qe7 {[%clk 0:01:33]} 24. Kg2 {[%clk 0:01:01]}  h6 {[%clk 0:01:32]} 25. Qd3 {[%clk 0:00:48]}  Rxd5 {[%clk 0:01:29]} 26. Qxd5 {[%clk 0:00:49]}  Re8 {[%clk 0:01:26]} 27. Qc6 {[%clk 0:00:45]}  Qe6 {[%clk 0:01:11]} 28. Qxe6 {[%clk 0:00:45]}  fxe6 {[%clk 0:01:12]} 29. Rd7 {[%clk 0:00:42]}  a5 {[%clk 0:01:12]} 30. Bd4 {[%clk 0:00:33]}  Rc8 {[%clk 0:01:07]} 31. f4 {[%clk 0:00:16]}  Bxd4 {[%clk 0:01:04]} 32. Rxd4 {[%clk 0:00:17]}  Rc2+ {[%clk 0:01:05]} 33. Kh3 {[%clk 0:00:18]}  Rxa2 {[%clk 0:00:58]} 34. Rd6 {[%clk 0:00:18]}  Kf7 {[%clk 0:00:52]} 35. Rxb6 {[%clk 0:00:18]}  h5 {[%clk 0:00:44]} 36. Ra6 {[%clk 0:00:16]}  Rb2 {[%clk 0:00:43]} 37. Rxa5 {[%clk 0:00:15]}  Rxb3 {[%clk 0:00:44]} 38. Ra7+ {[%clk 0:00:11]}  Kf8 {[%clk 0:00:39]} 39. Ra8+ {[%clk 0:00:11]}  Kf7 {[%clk 0:00:39]} 40. Ra7+ {[%clk 0:00:12]}  Kf8 {[%clk 0:00:39]} 41. Ra2 {[%clk 0:00:10]}  Kf7 {[%clk 0:00:36]} 42. Kg2 {[%clk 0:00:11]}  Rc3 {[%clk 0:00:17]} 43. Ra7+ {[%clk 0:00:11]}  Kf8 {[%clk 0:00:16]} 44. Rb7 {[%clk 0:00:11]}  Ra3 {[%clk 0:00:16]} 45. Kf2 {[%clk 0:00:11]}  Rc3 {[%clk 0:00:16]} 46. Ra7 {[%clk 0:00:10]}  Rb3 {[%clk 0:00:16]} 47. Kg2 {[%clk 0:00:10]}  Rc3 {[%clk 0:00:16]} 48. Ra2 {[%clk 0:00:10]}  Kf7 {[%clk 0:00:16]} 49. Ra6 {[%clk 0:00:07]}  Rb3 {[%clk 0:00:15]} 50. Rd6 {[%clk 0:00:08]}  Ra3 {[%clk 0:00:16]} 51. Kf2 {[%clk 0:00:08]}  Rb3 {[%clk 0:00:16]} 52. Rd2 {[%clk 0:00:08]}  Kg6 {[%clk 0:00:15]} 53. Rd7 {[%clk 0:00:08]}  Rb2+ {[%clk 0:00:12]} 54. Kf3 {[%clk 0:00:08]}  Rb3+ {[%clk 0:00:13]} 55. Kg2 {[%clk 0:00:08]}  Rb2+ {[%clk 0:00:14]} 56. Kh3 {[%clk 0:00:09]}  Rb6 {[%clk 0:00:12]} 57. Re7 {[%clk 0:00:08]}  Rc6 {[%clk 0:00:11]} 58. Kg2 {[%clk 0:00:08]}  Rc2+ {[%clk 0:00:11]} 59. Kf3 {[%clk 0:00:08]}  Rc3+ {[%clk 0:00:12]} 60. Kf2 {[%clk 0:00:08]}  Rc2+ {[%clk 0:00:13]} 61. Ke3 {[%clk 0:00:09]}  Rc3+ {[%clk 0:00:08]} 62. Ke4 {[%clk 0:00:08]}  Rc6 {[%clk 0:00:07]} 63. Rxe6+ {[%clk 0:00:08]}  Rxe6 {[%clk 0:00:06]} 64. f5+ {[%clk 0:00:09]}  Kf7 {[%clk 0:00:06]} 65. fxe6+ {[%clk 0:00:09]}  Kxe6 {[%clk 0:00:07]} 66. Kf4 {[%clk 0:00:08]}  g6 {[%clk 0:00:04]} 67. Kg5 {[%clk 0:00:05]}  Kxe5 {[%clk 0:00:04]} 68. Kxg6 {[%clk 0:00:05]}  Ke6 {[%clk 0:00:04]} 69. Kxh5 {[%clk 0:00:06]}  Kf7 {[%clk 0:00:05]} 70. Kg5 {[%clk 0:00:06]}  Kg8 {[%clk 0:00:05]} 71. g4 {[%clk 0:00:07]}  Kh8 {[%clk 0:00:06]} 72. h5 {[%clk 0:00:08]}  Kg8 {[%clk 0:00:07]} 73. Kg6 {[%clk 0:00:08]}  Kh8 {[%clk 0:00:08]} 74. Kf7 {[%clk 0:00:06]}  Kh7 {[%clk 0:00:08]} 75. g5 {[%clk 0:00:07]}  Kh8 {[%clk 0:00:08]} 76. h6 {[%clk 0:00:06]}  Kh7 {[%clk 0:00:08]} 77. g6+ {[%clk 0:00:06]}  Kxh6 {[%clk 0:00:09]} 78. g7 {[%clk 0:00:07]}  Kh5 {[%clk 0:00:09]} 79. g8=Q {[%clk 0:00:07]}  Kh4 {[%clk 0:00:10]} 80. Qg2 {[%clk 0:00:07]} 1-0


[Site "https://www.chess.com"]

[Event "Titled Tuesday Blitz May 2 Late 2023"]
[White "Gutkin, Ilya"]
[Black "Pakleza, Zbigniew"]
[WhiteFideId "16203470"]
[BlackFideId "1119290"]
[WhiteElo "2265"]
[BlackElo "2410"]
[Result "1-0"]
[Round "06"]
[TimeControl "180+2"]
[Date "2023.05.02"]
[WhiteClock "0:00:06"]
[BlackClock "0:00:03"]

1. Nf3 {[%clk 0:03:00]}  d5 {[%clk 0:02:59]} 2. g3 {[%clk 0:03:01]}  Nf6 {[%clk 0:02:59]} 3. Bg2 {[%clk 0:02:58]}  Bf5 {[%clk 0:02:59]} 4. c4 {[%clk 0:02:58]}  c6 {[%clk 0:03:00]} 5. Qb3 {[%clk 0:02:58]}  Qb6 {[%clk 0:03:00]} 6. d3 {[%clk 0:02:58]}  e6 {[%clk 0:02:59]} 7. Be3 {[%clk 0:02:58]}  Qxb3 {[%clk 0:02:59]} 8. axb3 {[%clk 0:02:59]}  a6 {[%clk 0:02:59]} 9. Nc3 {[%clk 0:02:59]}  Nbd7 {[%clk 0:02:59]} 10. cxd5 {[%clk 0:02:58]}  Nxd5 {[%clk 0:02:56]} 11. Bd2 {[%clk 0:02:55]}  Bg6 {[%clk 0:02:53]} 12. O-O {[%clk 0:02:50]}  Be7 {[%clk 0:02:53]} 13. Rfc1 {[%clk 0:02:47]}  O-O {[%clk 0:02:43]} 14. Na4 {[%clk 0:02:45]}  Rac8 {[%clk 0:02:36]} 15. h3 {[%clk 0:02:34]}  h6 {[%clk 0:02:35]} 16. Nd4 {[%clk 0:02:20]}  Bf6 {[%clk 0:02:28]} 17. Nc2 {[%clk 0:02:15]}  Rfe8 {[%clk 0:02:18]} 18. b4 {[%clk 0:02:14]}  e5 {[%clk 0:02:06]} 19. Nc3 {[%clk 0:02:11]}  N7b6 {[%clk 0:01:59]} 20. Ne4 {[%clk 0:02:06]}  Be7 {[%clk 0:01:58]} 21. Nc5 {[%clk 0:02:02]}  Rc7 {[%clk 0:01:44]} 22. e4 {[%clk 0:01:53]}  Nf6 {[%clk 0:01:36]} 23. f4 {[%clk 0:01:48]}  Nfd7 {[%clk 0:01:28]} 24. Be3 {[%clk 0:01:43]}  f6 {[%clk 0:01:07]} 25. h4 {[%clk 0:01:22]}  Nxc5 {[%clk 0:00:56]} 26. bxc5 {[%clk 0:01:21]}  Nd7 {[%clk 0:00:57]} 27. b4 {[%clk 0:01:20]}  Rd8 {[%clk 0:00:51]} 28. Rd1 {[%clk 0:01:17]}  Bf7 {[%clk 0:00:29]} 29. Rd2 {[%clk 0:01:12]}  Nf8 {[%clk 0:00:27]} 30. d4 {[%clk 0:01:05]}  Rcd7 {[%clk 0:00:28]} 31. Ra3 {[%clk 0:00:58]}  exd4 {[%clk 0:00:19]} 32. Rxd4 {[%clk 0:00:55]}  Ne6 {[%clk 0:00:18]} 33. Rxd7 {[%clk 0:00:55]}  Rxd7 {[%clk 0:00:19]} 34. Bf3 {[%clk 0:00:50]}  g5 {[%clk 0:00:09]} 35. hxg5 {[%clk 0:00:47]}  hxg5 {[%clk 0:00:09]} 36. Kf2 {[%clk 0:00:42]}  Kg7 {[%clk 0:00:08]} 37. Ke2 {[%clk 0:00:35]}  Nc7 {[%clk 0:00:06]} 38. Nd4 {[%clk 0:00:30]}  Bc4+ {[%clk 0:00:04]} 39. Kf2 {[%clk 0:00:30]}  Rxd4 {[%clk 0:00:03]} 40. Bxd4 {[%clk 0:00:29]}  Nb5 {[%clk 0:00:03]} 41. Bb2 {[%clk 0:00:18]}  Nxa3 {[%clk 0:00:04]} 42. Bxa3 {[%clk 0:00:19]}  gxf4 {[%clk 0:00:04]} 43. gxf4 {[%clk 0:00:20]}  Kf7 {[%clk 0:00:04]} 44. Bg4 {[%clk 0:00:19]}  Be6 {[%clk 0:00:04]} 45. Be2 {[%clk 0:00:17]}  f5 {[%clk 0:00:04]} 46. e5 {[%clk 0:00:14]}  Bd5 {[%clk 0:00:04]} 47. Bh5+ {[%clk 0:00:13]}  Ke6 {[%clk 0:00:04]} 48. Bc1 {[%clk 0:00:12]}  a5 {[%clk 0:00:04]} 49. Bd2 {[%clk 0:00:11]}  a4 {[%clk 0:00:04]} 50. Bc1 {[%clk 0:00:11]}  b6 {[%clk 0:00:02]} 51. Ba3 {[%clk 0:00:10]}  bxc5 {[%clk 0:00:01]} 52. bxc5 {[%clk 0:00:11]}  Be4 {[%clk 0:00:02]} 53. Bd1 {[%clk 0:00:12]}  Bd5 {[%clk 0:00:01]} 54. Bxa4 {[%clk 0:00:11]}  Bd8 {[%clk 0:00:01]} 55. Ke3 {[%clk 0:00:11]}  Bh4 {[%clk 0:00:02]} 56. Bb4 {[%clk 0:00:10]}  Bg3 {[%clk 0:00:02]} 57. Bd2 {[%clk 0:00:09]}  Bh4 {[%clk 0:00:02]} 58. Bc2 {[%clk 0:00:08]}  Be7 {[%clk 0:00:03]} 59. Bb4 {[%clk 0:00:07]}  Bh4 {[%clk 0:00:03]} 60. Bd3 {[%clk 0:00:07]}  Be7 {[%clk 0:00:03]} 61. Ba6 {[%clk 0:00:07]}  Bh4 {[%clk 0:00:03]} 62. Bc8+ {[%clk 0:00:08]}  Kf7 {[%clk 0:00:02]} 63. Bxf5 {[%clk 0:00:08]}  Bd8 {[%clk 0:00:02]} 64. Be4 {[%clk 0:00:08]}  Bc7 {[%clk 0:00:01]} 65. Bxd5+ {[%clk 0:00:08]}  cxd5 {[%clk 0:00:02]} 66. c6 {[%clk 0:00:04]}  Ke6 {[%clk 0:00:02]} 67. Kd4 {[%clk 0:00:04]}  Bb6+ {[%clk 0:00:02]} 68. Bc5 {[%clk 0:00:04]}  Bc7 {[%clk 0:00:02]} 69. Bd6 {[%clk 0:00:04]}  Bb6+ {[%clk 0:00:03]} 70. Kd3 {[%clk 0:00:04]}  Kf5 {[%clk 0:00:02]} 71. c7 {[%clk 0:00:04]}  Bxc7 {[%clk 0:00:03]} 72. Bxc7 {[%clk 0:00:05]}  Kxf4 {[%clk 0:00:03]} 73. e6+ {[%clk 0:00:05]}  Kf5 {[%clk 0:00:03]} 74. e7 {[%clk 0:00:06]} 1-0


[Site "https://www.chess.com"]

[Event "Titled Tuesday Blitz May 2 Late 2023"]
[White "Sun, Rick"]
[Black "Fedoseev, Vladimir"]
[WhiteFideId "30909481"]
[BlackFideId "24130737"]
[WhiteElo "2169"]
[BlackElo "2752"]
[Result "0-1"]
[Round "06"]
[TimeControl "180+2"]
[Date "2023.05.02"]
[WhiteClock "0:00:06"]
[BlackClock "0:01:10"]

1. d4 {[%clk 0:03:00]}  Nf6 {[%clk 0:02:21]} 2. Nc3 {[%clk 0:03:00]}  d5 {[%clk 0:02:19]} 3. Bf4 {[%clk 0:03:00]}  a6 {[%clk 0:02:20]} 4. e3 {[%clk 0:03:00]}  e6 {[%clk 0:02:17]} 5. Nf3 {[%clk 0:03:00]}  c5 {[%clk 0:02:17]} 6. dxc5 {[%clk 0:03:00]}  Bxc5 {[%clk 0:02:17]} 7. Bd3 {[%clk 0:03:00]}  Nc6 {[%clk 0:02:16]} 8. O-O {[%clk 0:03:01]}  h6 {[%clk 0:02:16]} 9. e4 {[%clk 0:03:01]}  O-O {[%clk 0:02:15]} 10. e5 {[%clk 0:02:57]}  Nh7 {[%clk 0:02:15]} 11. Qd2 {[%clk 0:02:41]}  f5 {[%clk 0:02:14]} 12. exf6 {[%clk 0:02:29]}  Qxf6 {[%clk 0:02:13]} 13. Bg3 {[%clk 0:02:26]}  Ng5 {[%clk 0:02:04]} 14. Nxg5 {[%clk 0:02:19]}  hxg5 {[%clk 0:02:05]} 15. Rae1 {[%clk 0:02:12]}  Bd7 {[%clk 0:02:05]} 16. a3 {[%clk 0:02:01]}  Rf7 {[%clk 0:02:04]} 17. b4 {[%clk 0:01:49]}  Bd4 {[%clk 0:02:03]} 18. Ne2 {[%clk 0:01:44]}  Ba7 {[%clk 0:02:03]} 19. c4 {[%clk 0:01:16]}  Raf8 {[%clk 0:01:57]} 20. c5 {[%clk 0:01:07]}  e5 {[%clk 0:01:57]} 21. Bb1 {[%clk 0:01:02]}  Be6 {[%clk 0:01:56]} 22. Nc3 {[%clk 0:00:56]}  Rd8 {[%clk 0:01:52]} 23. Ba2 {[%clk 0:00:34]}  Rfd7 {[%clk 0:01:52]} 24. Qd1 {[%clk 0:00:29]}  Bb8 {[%clk 0:01:51]} 25. Qh5 {[%clk 0:00:28]}  g6 {[%clk 0:01:43]} 26. Qd1 {[%clk 0:00:27]}  Kg7 {[%clk 0:01:41]} 27. Na4 {[%clk 0:00:26]}  Rf7 {[%clk 0:01:29]} 28. Nb6 {[%clk 0:00:25]}  Nd4 {[%clk 0:01:23]} 29. Re3 {[%clk 0:00:18]}  Nf5 {[%clk 0:01:21]} 30. Rf3 {[%clk 0:00:16]}  e4 {[%clk 0:01:20]} 31. Rxf5 {[%clk 0:00:15]}  gxf5 {[%clk 0:01:17]} 32. Bxb8 {[%clk 0:00:15]}  Rxb8 {[%clk 0:01:17]} 33. Nxd5 {[%clk 0:00:15]}  Qe5 {[%clk 0:01:17]} 34. Qd2 {[%clk 0:00:12]}  f4 {[%clk 0:01:16]} 35. Rd1 {[%clk 0:00:12]}  Rd8 {[%clk 0:01:16]} 36. h4 {[%clk 0:00:08]}  Rfd7 {[%clk 0:01:15]} 37. hxg5 {[%clk 0:00:08]}  Bxd5 {[%clk 0:01:14]} 38. Qe2 {[%clk 0:00:06]}  Bxa2 {[%clk 0:01:12]} 39. Rxd7+ {[%clk 0:00:06]}  Rxd7 {[%clk 0:01:13]} 40. Qh5 {[%clk 0:00:06]}  Qe6 {[%clk 0:01:11]} 41. g6 {[%clk 0:00:05]}  Qxg6 {[%clk 0:01:10]} 42. Qe5+ {[%clk 0:00:06]}  Qf6 {[%clk 0:01:10]} 0-1


[Site "https://www.chess.com"]

[Event "Titled Tuesday Blitz May 2 Late 2023"]
[White "Paravyan, David"]
[Black "Khripachenko, Alexander"]
[WhiteFideId "4194985"]
[BlackFideId "54184975"]
[WhiteElo "2563"]
[BlackElo "2374"]
[Result "1-0"]
[Round "06"]
[TimeControl "180+2"]
[Date "2023.05.02"]
[WhiteClock "0:00:31"]
[BlackClock "0:00:04"]

1. e4 {[%clk 0:03:00]}  c5 {[%clk 0:02:58]} 2. Nf3 {[%clk 0:02:59]}  Nc6 {[%clk 0:02:55]} 3. Bb5 {[%clk 0:02:58]}  e6 {[%clk 0:02:54]} 4. Bxc6 {[%clk 0:02:56]}  bxc6 {[%clk 0:02:52]} 5. d3 {[%clk 0:02:57]}  d6 {[%clk 0:02:52]} 6. e5 {[%clk 0:02:56]}  Ne7 {[%clk 0:02:50]} 7. exd6 {[%clk 0:02:55]}  Ng6 {[%clk 0:02:50]} 8. Nbd2 {[%clk 0:02:55]}  Bxd6 {[%clk 0:02:50]} 9. Nc4 {[%clk 0:02:55]}  Bc7 {[%clk 0:02:32]} 10. b3 {[%clk 0:02:46]}  f6 {[%clk 0:02:27]} 11. O-O {[%clk 0:02:43]}  e5 {[%clk 0:02:25]} 12. Nfd2 {[%clk 0:02:42]}  O-O {[%clk 0:01:39]} 13. Ne4 {[%clk 0:02:42]}  Bb6 {[%clk 0:01:18]} 14. a4 {[%clk 0:02:32]}  Be6 {[%clk 0:01:14]} 15. a5 {[%clk 0:02:30]}  Bc7 {[%clk 0:01:14]} 16. Ba3 {[%clk 0:02:21]}  f5 {[%clk 0:01:09]} 17. Nxc5 {[%clk 0:02:14]}  Bd5 {[%clk 0:01:09]} 18. f3 {[%clk 0:02:07]}  Nf4 {[%clk 0:01:03]} 19. Bc1 {[%clk 0:01:56]}  Qg5 {[%clk 0:00:51]} 20. Bxf4 {[%clk 0:01:53]}  Qxf4 {[%clk 0:00:50]} 21. Qc1 {[%clk 0:01:39]}  Qh4 {[%clk 0:00:44]} 22. Qe1 {[%clk 0:01:36]}  Qf6 {[%clk 0:00:21]} 23. Nd7 {[%clk 0:01:33]}  Qh6 {[%clk 0:00:19]} 24. Nxf8 {[%clk 0:01:34]}  e4 {[%clk 0:00:17]} 25. g3 {[%clk 0:01:30]}  exf3 {[%clk 0:00:13]} 26. Nd7 {[%clk 0:01:01]}  Qh3 {[%clk 0:00:11]} 27. Qf2 {[%clk 0:00:53]}  f4 {[%clk 0:00:12]} 28. Nce5 {[%clk 0:00:49]}  Re8 {[%clk 0:00:09]} 29. Rae1 {[%clk 0:00:46]}  Re6 {[%clk 0:00:09]} 30. gxf4 {[%clk 0:00:37]}  Qf5 {[%clk 0:00:08]} 31. Kh1 {[%clk 0:00:35]}  Qxf4 {[%clk 0:00:07]} 32. c4 {[%clk 0:00:35]}  Rh6 {[%clk 0:00:01]} 33. cxd5 {[%clk 0:00:34]}  cxd5 {[%clk 0:00:01]} 34. Nxf3 {[%clk 0:00:31]}  Bd6 {[%clk 0:00:01]} 35. Re8+ {[%clk 0:00:30]}  Kf7 {[%clk 0:00:02]} 36. Nfe5+ {[%clk 0:00:30]}  Bxe5 {[%clk 0:00:02]} 37. Nxe5+ {[%clk 0:00:29]}  Kxe8 {[%clk 0:00:02]} 38. Qxf4 {[%clk 0:00:30]}  Rf6 {[%clk 0:00:03]} 39. Qxf6 {[%clk 0:00:30]}  gxf6 {[%clk 0:00:03]} 40. Rxf6 {[%clk 0:00:30]}  Ke7 {[%clk 0:00:04]} 41. Ra6 {[%clk 0:00:31]} 1-0


[Site "https://www.chess.com"]